bitfinex-derivatives/quotes_SOLF0:USTF0_20250409
["timestamp","ask_amount","ask_price","bid_price","bid_amount"]
[1744201888540,0.06185562,102.85,102.83,0.0663586]
[1744201888941,9.78985562,102.85,102.83,0.0663586]
[1744201889440,0.06185562,102.85,102.83,0.0663586]
[1744201889646,9.7285,102.84,102.83,0.0663586]
[1744201889943,0.06185562,102.85,102.83,0.0663586]
[1744201890543,9.78945562,102.85,102.83,0.0663586]
[1744201891246,0.06185562,102.85,102.81,48.07651206]
[1744201891947,0.06185562,102.85,102.79,13.9068]
[1744201892446,0.06185562,102.85,102.79,80.44011677]
[1744201892637,9.78935562,102.85,102.79,80.44011677]
[1744201893037,0.06185562,102.85,102.79,80.44011677]
[1744201893245,0.06185562,102.85,102.83,9.7285]
[1744201893453,0.06185562,102.85,102.83,48.12]
[1744201893654,0.06185562,102.85,102.79,128.56011677]
[1744201893945,0.06185562,102.85,102.8,9.7318]
[1744201894459,0.06185562,102.85,102.79,71.7595]
[1744201894757,0.06185562,102.85,102.79,62.0268]
[1744201894945,53.11835562,102.85,102.76,48.12]
[1744201895146,53.0565,102.85,102.76,62.0464]
[1744201895345,9.7941734,102.82,102.78,9.7337]
[1744201895547,0.0629734,102.82,102.78,9.7337]
[1744201895751,0.0629734,102.82,102.76,62.0464]
[1744201895949,9.7319,102.81,102.78,9.7337]
[1744201896347,0.0629734,102.82,102.76,62.0464]
[1744201896548,0.0629734,102.82,102.78,9.7337]
[1744201896748,32.99220068,102.84,102.76,62.0464]
[1744201896949,9.7323,102.8,102.77,9.7345]
[1744201897250,0.07467081,102.81,102.76,62.0464]
[1744201897750,9.80657081,102.81,102.77,9.7343]
[1744201898255,9.80657081,102.81,102.78,9.7334]
[1744201898759,9.80657081,102.81,102.77,9.7346]
[1744201899357,0.07467081,102.81,102.76,13.9264]
[1744201900055,0.07467081,102.81,102.77,48.1]
[1744201900445,32.99220068,102.83,102.82,9.7304]
[1744201900653,32.99220068,102.83,102.79,66.53331677]
[1744201900852,32.99220068,102.83,102.77,48.1]
[1744201901055,42.72220068,102.83,102.8,9.7319]
[1744201901260,32.99220068,102.83,102.8,9.7319]
[1744201901448,32.99220068,102.83,102.81,9.7309]
[1744201901642,33.06527655,102.83,102.8,0.06289451]
[1744201902053,9.80297587,102.83,102.8,9.79469451]
[1744201902357,0.07307587,102.83,102.8,0.06289451]
[1744201902557,9.7313,102.81,102.8,0.06289451]
[1744201902951,57.82,102.81,102.7,48.52940257]
[1744201903150,429.53331677,102.8,102.7,0.42940257]
[1744201903358,363.0,102.79,102.7,0.42940257]
[1744201903656,9.7364,102.76,102.7,48.52940257]
[1744201903852,48.1,102.78,102.7,48.52940257]
[1744201904058,57.5398,102.78,102.7,48.52940257]
[1744201904258,0.0657067,102.74,102.67,0.17809376]
[1744201904656,114.63331677,102.76,102.67,0.17809376]
[1744201904657,48.1,102.76,102.67,0.17809376]
[1744201905057,0.06983074,102.72,102.67,0.17809376]
[1744201905659,9.7426,102.7,102.67,0.17809376]
[1744201905859,0.06983074,102.72,102.67,66.71141053]
[1744201906055,66.53331677,102.75,102.67,0.17809376]
[1744201906257,0.07178673,102.71,102.67,0.17809376]
[1744201906757,66.53331677,102.69,102.65,0.20171355]
[1744201907067,66.53331677,102.66,102.62,0.20636827]
[1744201907355,9.7484,102.63,102.62,0.20636827]
[1744201907764,9.7477,102.64,102.62,0.20636827]
[1744201907949,0.06143455,102.64,102.62,0.20636827]
[1744201908749,9.7434,102.69,102.62,0.20636827]
[1744201909052,66.53331677,102.7,102.62,0.20636827]
[1744201909254,372.7412,102.71,102.62,0.20636827]
[1744201909554,4.9096,102.72,102.63,66.53331677]
[1744201909753,71.44291677,102.72,102.64,19.5385]
[1744201909957,0.07020714,102.69,102.66,0.06482445]
[1744201911161,9.7445,102.68,102.66,0.06482445]
[1744201911361,0.07020714,102.69,102.66,0.06482445]
[1744201912463,0.07020714,102.69,102.67,9.7437]
[1744201913262,0.07020714,102.69,102.66,0.06482445]
[1744201913765,0.07020714,102.69,102.67,9.7445]
[1744201913962,0.07020714,102.69,102.66,0.06482445]
[1744201914262,0.07020714,102.69,102.67,9.7446]
[1744201914463,0.07020714,102.69,102.66,0.06482445]
[1744201915054,66.60352391,102.69,102.66,0.06482445]
[1744201915259,9.7446,102.67,102.66,0.06482445]
[1744201916357,66.53331677,102.67,102.62,0.20636827]
[1744201916761,438.80301677,102.69,102.62,0.20636827]
[1744201917455,9.7484,102.63,102.62,0.20636827]
[1744201918163,0.06786647,102.64,102.62,0.20636827]
[1744201918560,9.7484,102.63,102.62,0.20636827]
[1744201918761,0.06786647,102.64,102.62,0.20636827]
[1744201919266,4.81836647,102.64,102.61,0.17532944]
[1744201919463,4.81836647,102.64,102.61,2.944e-05]
[1744201919464,66.53331677,102.63,102.61,2.944e-05]
[1744201919767,9.7503,102.61,102.6,0.35115795]
[1744201920070,122.39331677,102.61,102.57,0.18540376]
[1744201920461,0.06965454,102.62,102.57,0.18540376]
[1744201920966,9.7517,102.6,102.57,0.18540376]
[1744201921171,0.06965454,102.62,102.57,0.18540376]
[1744201921470,76.28641677,102.58,102.53,0.18430503]
[1744201921659,133.06663354,102.55,102.46,0.50090366]
[1744201921865,66.53331677,102.49,102.46,0.50090366]
[1744201922066,9.7626,102.48,102.46,0.50090366]
[1744201922369,0.06341123,102.49,102.46,7.749e-05]
[1744201922565,76.29691677,102.47,102.46,7.749e-05]
[1744201922967,142.82663354,102.47,102.43,3.11677069]
[1744201923168,9.7664,102.44,102.43,3.11677069]
[1744201923466,124.31331677,102.48,102.43,3.11677069]
[1744201923662,0.06278838,102.45,102.4,0.57122008]
[1744201923866,66.59610515,102.45,102.4,0.57122008]
[1744201924067,9.7669,102.44,102.4,0.57122008]
[1744201924270,0.06278838,102.45,102.41,57.78]
[1744201924467,66.53331677,102.47,102.42,66.8473]
[1744201924661,429.53331677,102.51,102.42,4.8473]
[1744201924879,57.78,102.56,102.45,66.53331677]
[1744201925172,57.78,102.56,102.43,124.31331677]
[1744201925366,71.16571677,102.55,102.43,124.31331677]
[1744201925766,0.06545078,102.5,102.48,0.06243271]
[1744201925972,0.06545078,102.5,102.45,74.67064948]
[1744201926167,9.7596,102.52,102.45,74.67064948]
[1744201926375,64.2524,102.55,102.48,9.762]
[1744201926668,4.6324,102.55,102.48,69.382]
[1744201926865,4.6324,102.55,102.49,9.7616]
[1744201927172,0.07136065,102.53,102.49,4.5514]
[1744201928067,0.07136065,102.53,102.46,62.0]
[1744201928268,66.53331677,102.5,102.43,4.5514]
[1744201928470,66.53331677,102.48,102.41,59.62]
[1744201928677,9.7669,102.44,102.41,59.62]
[1744201928880,66.53331677,102.44,102.4,0.57122008]
[1744201929172,0.06864446,102.43,102.4,0.57122008]
[1744201929473,66.53331677,102.42,102.38,5.855e-05]
[1744201929667,9.7712,102.39,102.38,5.855e-05]
[1744201929978,363.0,102.41,102.38,5.855e-05]
[1744201930177,0.07406844,102.4,102.38,5.855e-05]
[1744201930974,0.07406844,102.4,102.38,9.77155855]
[1744201931178,0.07406844,102.4,102.38,5.855e-05]
[1744201932069,0.07406844,102.4,102.38,9.77175855]
[1744201932477,0.07406844,102.4,102.38,9.75175855]
[1744201932779,0.07406844,102.4,102.37,9.7727]
[1744201932976,0.07406844,102.4,102.36,189.99331677]
[1744201933176,0.07406844,102.4,102.36,127.99331677]
[1744201933378,0.07406844,102.4,102.37,9.7729]
[1744201933878,0.07406844,102.4,102.36,71.2336]
[1744201934281,0.07406844,102.4,102.36,61.46]
[1744201934878,0.07406844,102.4,102.36,71.2338]
[1744201935175,0.07406844,102.4,102.36,61.46]
[1744201935374,9.7731,102.37,102.34,0.73003874]
[1744201935579,429.53331677,102.4,102.34,0.73003874]
[1744201935880,0.06367006,102.37,102.34,0.73003874]
[1744201936274,0.06367006,102.37,102.34,128.76335551]
[1744201936475,4.7646,102.44,102.34,138.52335551]
[1744201936775,4.7646,102.44,102.34,128.82547186]
[1744201936976,9.771,102.4,102.34,128.76335551]
[1744201937380,66.2646,102.44,102.34,62.23003874]
[1744201937581,66.53331677,102.43,102.34,62.23003874]
[1744201937782,0.06834427,102.4,102.38,0.06687609]
[1744201938682,9.7712,102.39,102.38,0.06687609]
[1744201939071,9.7736,102.37,102.34,62.23003874]
[1744201939278,9.7736,102.37,102.34,0.73003874]
[1744201939478,66.53331677,102.41,102.34,0.73003874]
[1744201939686,9.7726,102.38,102.34,10.50553874]
[1744201939879,66.53331677,102.39,102.34,0.73003874]
[1744201940278,9.775,102.35,102.34,0.73003874]
[1744201940775,9.775,102.35,102.3,22.44213019]
[1744201940776,9.7789,102.31,102.3,12.66283019]
[1744201940979,429.53331677,102.35,102.3,12.66283019]
[1744201941178,0.07381562,102.32,102.3,12.66283019]
[1744201941987,9.7789,102.31,102.3,12.66283019]
[1744201942186,0.07381562,102.32,102.3,12.66283019]
[1744201942787,495.57711677,102.39,102.3,12.66283019]
[1744201943084,4.812,102.42,102.3,12.66283019]
[1744201943287,4.812,102.42,102.34,66.53331677]
[1744201943495,66.53331677,102.4,102.3,14.6178644]
[1744201943680,66.53331677,102.4,102.3,19.0780644]
[1744201943986,9.7756,102.35,102.3,14.6178644]
[1744201944187,0.06279004,102.36,102.34,0.06776543]
[1744201944486,0.06179949,102.36,102.34,0.06789921]
[1744201945785,0.06179949,102.36,102.34,4.60709921]
[1744201946902,9.83629949,102.36,102.34,4.60709921]
[1744201947387,0.06179949,102.36,102.34,4.60709921]
[1744201948486,4.812,102.42,102.34,132.70041598]
[1744201948881,4.7951,102.43,102.35,4.9026]
[1744201949077,4.7951,102.43,102.34,66.0992]
[1744201949290,13.52,102.42,102.34,66.0992]
[1744201949585,9.83722693,102.39,102.35,62.0]
[1744201949791,9.83722693,102.39,102.37,0.06178391]
[1744201950186,9.7722,102.38,102.37,0.06178391]
[1744201950590,0.06532693,102.39,102.37,0.06178391]
[1744201950790,9.7722,102.38,102.37,0.06178391]
[1744201952292,13.52,102.42,102.37,71.32]
[1744201952494,13.52,102.42,102.38,4.5791]
[1744201952893,13.52,102.42,102.38,19.157]
[1744201953192,13.52,102.42,102.38,9.3854]
[1744201953394,13.52,102.42,102.38,19.1568]
[1744201953598,0.07471163,102.41,102.39,0.06383084]
[1744201954184,13.52,102.42,102.39,66.59714761]
[1744201954386,88.38582474,102.47,102.41,66.53331677]
[1744201954591,88.38582474,102.47,102.42,61.56]
[1744201955099,52.60273036,102.47,102.43,66.53331677]
[1744201955298,52.60273036,102.47,102.44,9.7658]
[1744201955605,0.06545048,102.46,102.44,0.07498981]
[1744201957397,52.60273036,102.47,102.44,66.60830658]
[1744201957598,52.60273036,102.5,102.44,66.60830658]
[1744201957900,52.60273036,102.5,102.45,66.53331677]
[1744201958099,52.60273036,102.5,102.46,61.54]
[1744201958290,52.60273036,102.5,102.47,9.7631]
[1744201958491,0.07365359,102.49,102.47,9.82466582]
[1744201959398,0.07365359,102.49,102.47,0.06156582]
[1744201959693,5.359e-05,102.49,102.48,9.7626]
[1744201959894,140.68655637,102.52,102.48,66.53331677]
[1744201960097,234.10161852,102.53,102.51,66.53331677]
[1744201960398,4.6147,102.58,102.51,66.53331677]
[1744201960399,178.25426654,102.54,102.52,61.38]
[1744201960596,148.44256654,102.54,102.53,76.29121677]
[1744201960797,53.81584017,102.55,102.52,71.14]
[1744201960990,53.87758952,102.55,102.53,66.53331677]
[1744201961192,53.87758952,102.55,102.53,76.29111677]
[1744201961586,53.87758952,102.55,102.52,71.21245669]
[1744201962301,53.87758952,102.55,102.53,9.7578]
[1744201962498,53.87758952,102.55,102.52,61.45375669]
[1744201962697,53.87758952,102.55,102.54,66.53331677]
[1744201962903,53.87758952,102.55,102.54,76.29021677]
[1744201963196,53.87758952,102.55,102.54,138.29021677]
[1744201963390,329.99454353,102.56,102.55,9.756]
[1744201963801,9.7523,102.59,102.55,9.756]
[1744201963999,76.03561677,102.63,102.56,61.36]
[1744201964794,0.06460262,102.6,102.58,0.06600113]
[1744201965099,9.7531,102.59,102.58,0.06600113]
[1744201965596,0.06460262,102.6,102.58,0.06600113]
[1744201966193,9.81590262,102.6,102.58,0.06600113]
[1744201966396,0.06460262,102.6,102.58,0.06600113]
[1744201966700,66.53331677,102.63,102.58,0.06600113]
[1744201966701,66.53331677,102.63,102.59,314.34151513]
[1744201966893,66.53331677,102.65,102.59,314.34151513]
[1744201967301,9.7508,102.61,102.6,49.01390933]
[1744201967492,66.53331677,102.65,102.6,49.01390933]
[1744201967887,0.07409602,102.62,102.6,41.59930933]
[1744201968094,0.07409602,102.62,102.56,61.36]
[1744201968401,66.60741279,102.62,102.6,0.06615957]
[1744201968702,4.6158,102.61,102.54,579.76387462]
[1744201969003,9.756,102.55,102.54,579.76387462]
[1744201969297,66.53331677,102.58,102.54,579.76387462]
[1744201969487,429.53331677,102.6,102.54,579.76387462]
[1744201969687,9.7545,102.57,102.54,496.94046396]
[1744201969891,9.7545,102.57,102.56,0.07236882]
[1744201970699,9.7545,102.57,102.54,558.26046396]
[1744201970906,9.7545,102.57,102.54,568.01686396]
[1744201971096,0.06426103,102.58,102.54,558.26046396]
[1744201971601,0.06426103,102.58,102.56,9.7543]
[1744201971903,0.06426103,102.58,102.56,9.82703401]
[1744201972203,0.06426103,102.58,102.56,0.07273401]
[1744201972701,0.06426103,102.58,102.57,9.7541]
[1744201972888,9.81816103,102.58,102.56,0.07273401]
[1744201973089,0.06426103,102.58,102.56,0.07273401]
[1744201973292,0.06426103,102.58,102.56,9.82753401]
[1744201973495,0.06426103,102.58,102.56,0.07273401]
[1744201973896,0.06426103,102.58,102.57,9.7541]
[1744201974097,14.4218,102.63,102.56,66.60605078]
[1744201974305,9.7489,102.63,102.56,66.60605078]
[1744201974605,9.7489,102.63,102.56,66.53331677]
[1744201974806,9.748,102.64,102.6,9.7505]
[1744201975108,4.8332,102.67,102.61,61.32]
[1744201975409,0.0661568,102.63,102.62,9.7489]
[1744201975599,4.7385,102.69,102.61,61.39375834]
[1744201975801,4.7385,102.69,102.61,61.32]
[1744201976103,9.2477,102.69,102.61,61.32]
[1744201976606,66.53331677,102.68,102.61,61.32]
[1744201976908,0.06399096,102.66,102.64,0.06750965]
[1744201977107,0.06399096,102.66,102.56,61.3]
[1744201977108,66.59730773,102.66,102.56,61.3]
[1744201977302,4.8622,102.65,102.56,61.3]
[1744201977605,9.7518,102.6,102.56,61.3]
[1744201977803,66.53331677,102.64,102.56,61.3]
[1744201978001,9.7504,102.61,102.57,9.7536]
[1744201978197,0.0705887,102.61,102.59,0.07063893]
[1744201978398,0.0705887,102.61,102.6,61.3]
[1744201980306,0.0705887,102.61,102.6,71.0512]
[1744201980504,0.0705887,102.61,102.6,61.3]
[1744201981707,9.8208887,102.61,102.6,61.3]
[1744201982213,0.0705887,102.61,102.6,61.3]
[1744201982812,0.0705887,102.61,102.6,71.0512]
[1744201983497,0.0705887,102.61,102.59,0.07063893]
[1744201984008,9.7512,102.6,102.59,0.07063893]
[1744201984805,9.7531,102.58,102.57,61.28]
[1744201985201,66.53331677,102.61,102.54,558.22046396]
[1744201985609,4.6869,102.63,102.54,624.75378073]
[1744201986002,0.06159873,102.6,102.57,9.82761187]
[1744201986503,0.06159873,102.6,102.58,61.3]
[1744201988103,0.06159873,102.6,102.57,0.07431187]
[1744201989713,0.06159873,102.6,102.58,9.7524]
[1744201989914,0.06159873,102.6,102.57,0.07431187]
[1744201990714,0.06159873,102.6,102.58,9.7528]
[1744201990915,0.06159873,102.6,102.57,0.07431187]
[1744201991215,9.7526,102.59,102.57,9.82831187]
[1744201991813,0.06159873,102.6,102.57,0.07431187]
[1744201992216,0.06159873,102.6,102.55,61.3]
[1744201993528,0.06159873,102.6,102.56,9.82479113]
[1744201994016,9.7533,102.58,102.56,9.82479113]
[1744201994219,0.06159873,102.6,102.56,0.07049113]
[1744201995022,9.81329873,102.6,102.56,0.07049113]
[1744201995319,0.06159873,102.6,102.57,9.7537]
[1744201995617,0.06159873,102.6,102.56,0.07049113]
[1744201996421,0.06159873,102.6,102.57,9.754]
[1744201996619,0.06159873,102.6,102.56,0.07049113]
[1744201997012,0.06159873,102.6,102.58,9.7527]
[1744201997218,0.06159873,102.6,102.57,61.38]
[1744201997518,0.06159873,102.6,102.57,71.1337]
[1744201997722,9.81319873,102.6,102.57,71.1337]
[1744201997920,9.81319873,102.6,102.57,61.38]
[1744201998111,9.81319873,102.6,102.58,9.7531]
[1744201998821,9.81319873,102.6,102.57,71.1335]
[1744201999021,9.81319873,102.6,102.57,61.38]
[1744201999022,0.06159873,102.6,102.57,61.38]
[1744201999522,9.7526,102.59,102.57,61.38]
[1744201999913,0.06159873,102.6,102.57,61.38]
[1744202000720,9.7526,102.59,102.57,71.1337]
[1744202000922,0.06159873,102.6,102.57,61.38]
[1744202001115,0.06159873,102.6,102.56,0.07049113]
[1744202001623,9.7533,102.58,102.56,9.82509113]
[1744202001817,0.06159873,102.6,102.56,0.07049113]
[1744202002018,0.06159873,102.6,102.57,61.38]
[1744202002320,0.06159873,102.6,102.58,9.7523]
[1744202002514,0.06159873,102.6,102.57,61.38]
[1744202003025,9.81329873,102.6,102.58,9.753]
[1744202003224,0.06159873,102.6,102.57,61.38]
[1744202003825,0.06159873,102.6,102.58,9.7525]
[1744202004319,0.06159873,102.6,102.58,9.7531]
[1744202004518,0.06159873,102.6,102.57,61.38]
[1744202005019,0.06159873,102.6,102.58,9.7524]
[1744202005221,0.06159873,102.6,102.57,61.38]
[1744202005823,0.06159873,102.6,102.56,0.07049113]
[1744202006823,0.06159873,102.6,102.56,9.82499113]
[1744202007122,9.7541,102.57,102.56,0.07049113]
[1744202007320,4.8059,102.59,102.56,0.07049113]
[1744202007624,0.06524513,102.58,102.56,0.07049113]
[1744202008324,0.06524513,102.58,102.56,9.82469113]
[1744202008523,9.81884513,102.58,102.56,0.07049113]
[1744202009025,9.81884513,102.58,102.56,9.82509113]
[1744202009323,0.06524513,102.58,102.56,0.07049113]
[1744202009521,0.06524513,102.58,102.56,9.82509113]
[1744202009924,0.06524513,102.58,102.56,0.07049113]
[1744202010228,0.06524513,102.58,102.57,9.7541]
[1744202012824,0.06524513,102.58,102.56,0.07049113]
[1744202013535,0.06524513,102.58,102.57,9.7541]
[1744202015446,4.6869,102.63,102.56,41.13575249]
[1744202015639,4.6869,102.63,102.57,9.2993]
[1744202015839,9.7505,102.61,102.58,69.2924]
[1744202016340,9.7514,102.6,102.58,59.54]
[1744202016543,0.06280587,102.61,102.58,59.60769392]
[1744202016842,0.06280587,102.61,102.58,0.06769392]
[1744202017146,9.7522,102.59,102.58,0.06769392]
[1744202021539,9.7517,102.6,102.58,9.82079392]
[1744202022343,0.06280587,102.61,102.58,57.74769392]
[1744202022551,9.5958,102.66,102.59,41.06526136]
[1744202023049,9.7478,102.64,102.62,9.7493]
[1744202023550,9.7468,102.65,102.59,41.06526136]
[1744202023750,9.7468,102.65,102.62,57.68]
[1744202024051,0.07060482,102.64,102.63,9.7483]
[1744202024551,0.07060482,102.64,102.62,67.49930308]
[1744202024952,0.07060482,102.64,102.62,57.75070308]
[1744202025147,0.07060482,102.64,102.63,9.7484]
[1744202026639,0.07060482,102.64,102.62,67.49960308]
[1744202027244,0.07060482,102.64,102.62,57.75070308]
[1744202028349,0.07060482,102.64,102.63,9.7484]
[1744202029354,9.81880482,102.64,102.62,67.49980308]
[1744202031951,0.07060482,102.64,102.62,67.49980308]
[1744202032359,9.81820482,102.64,102.62,67.49980308]
[1744202032653,0.07060482,102.64,102.62,67.49980308]
[1744202032957,0.07060482,102.64,102.63,9.7484]
[1744202033148,55.03436136,102.71,102.62,57.75070308]
[1744202033348,55.03436136,102.71,102.62,57.68]
[1744202033551,9.7442,102.68,102.63,41.06526136]
[1744202033749,9.7442,102.68,102.63,45.58376136]
[1744202034252,9.7442,102.68,102.64,0.06303991]
[1744202034458,0.07208272,102.67,102.66,9.7455]
[1744202035057,0.07208272,102.67,102.66,67.4055]
[1744202035450,976.52526136,102.75,102.66,57.66]
[1744202035754,13.8842,102.74,102.66,57.66]
[1744202035957,9.7414,102.71,102.68,9.7431]
[1744202036158,13.8842,102.74,102.68,9.7431]
[1744202036458,9.7406,102.72,102.69,9.7423]
[1744202036758,0.06806922,102.72,102.7,0.06860996]
[1744202037159,0.06806922,102.72,102.7,9.80970996]
[1744202037358,0.06806922,102.72,102.7,0.06860996]
[1744202037763,9.80836922,102.72,102.7,0.06860996]
[1744202038360,0.06806922,102.72,102.7,9.81020996]
[1744202038664,0.06806922,102.72,102.7,0.06860996]
[1744202038960,9.80826922,102.72,102.7,0.06860996]
[1744202039562,0.06806922,102.72,102.7,0.06860996]
[1744202040061,9.7408,102.71,102.7,0.06860996]
[1744202040257,0.06806922,102.72,102.7,0.06860996]
[1744202040764,9.80806922,102.72,102.7,0.06860996]
[1744202041360,9.7408,102.71,102.7,0.06860996]
[1744202042663,9.80826922,102.72,102.7,0.06860996]
[1744202043062,0.06806922,102.72,102.7,0.06860996]
[1744202043364,9.80846922,102.72,102.7,0.06860996]
[1744202043664,0.06806922,102.72,102.7,0.06860996]
[1744202045857,9.7408,102.71,102.7,0.06860996]
[1744202046475,0.06806922,102.72,102.66,57.66]
[1744202046676,41.06526136,102.73,102.66,57.66]
[1744202047875,0.06343429,102.71,102.68,0.06455953]
[1744202048080,9.7427,102.69,102.68,0.06455953]
[1744202048875,0.06343429,102.71,102.68,0.06455953]
[1744202048876,9.7421,102.7,102.68,0.06455953]
[1744202049377,0.06343429,102.71,102.68,0.06455953]
[1744202050579,0.06343429,102.71,102.68,41.12982089]
[1744202050782,41.06526136,102.79,102.7,41.06526136]
[1744202050972,50.36986136,102.79,102.71,55.82]
[1744202051373,9.7377,102.75,102.71,55.82]
[1744202051778,4.6,102.78,102.71,55.82]
[1744202051978,0.06556281,102.74,102.72,0.06203405]
[1744202052483,0.06556281,102.74,102.73,9.7389]
[1744202052975,9.80356281,102.74,102.72,0.06203405]
[1744202053483,9.7389,102.73,102.72,0.06203405]
[1744202054185,9.80406281,102.74,102.72,0.06203405]
[1744202054583,0.06556281,102.74,102.73,9.7389]
[1744202054784,0.06556281,102.74,102.72,0.06203405]
[1744202055082,0.06556281,102.74,102.72,9.80133405]
[1744202055385,9.80406281,102.74,102.72,9.80133405]
[1744202055586,0.06556281,102.74,102.72,0.06203405]
[1744202056093,9.7389,102.73,102.72,0.06203405]
[1744202057392,9.7418,102.7,102.68,53.96]
[1744202057592,9.7418,102.7,102.68,63.7033]
[1744202058297,9.81417544,102.7,102.68,63.77726083]
[1744202059600,9.81417544,102.7,102.68,54.03396083]
[1744202059796,9.7427,102.69,102.68,54.03396083]
[1744202060200,0.07237544,102.7,102.62,568.22]
[1744202060399,9.7474,102.64,102.62,568.22]
[1744202060600,9.7474,102.64,102.62,577.9689]
[1744202061500,9.81419628,102.64,102.62,578.04362821]
[1744202061700,9.81419628,102.64,102.62,568.29472821]
[1744202061998,9.7484,102.63,102.62,54.03472821]
[1744202062202,0.06679628,102.64,102.62,0.07472821]
[1744202062704,0.06679628,102.64,102.62,9.82362821]
[1744202062998,19.3671,102.68,102.63,115.98]
[1744202063199,9.3317,102.72,102.67,9.7446]
[1744202063400,9.3317,102.72,102.65,41.06526136]
[1744202063602,9.7425,102.7,102.65,41.06526136]
[1744202063800,9.7425,102.7,102.67,9.7442]
[1744202064207,9.80655419,102.7,102.67,9.81712034]
[1744202064507,9.80655419,102.7,102.67,0.07292034]
[1744202064802,0.06405419,102.7,102.67,0.07292034]
[1744202065193,9.7433,102.69,102.67,0.07292034]
[1744202065602,0.06405419,102.7,102.67,0.07292034]
[1744202065800,9.7436,102.68,102.67,0.07292034]
[1744202066405,9.7433,102.69,102.67,0.07292034]
[1744202069811,9.7433,102.69,102.67,9.81732034]
[1744202070407,9.7436,102.68,102.67,0.07292034]
[1744202070603,0.06405419,102.7,102.67,0.07292034]
[1744202071008,9.80645419,102.7,102.67,9.81712034]
[1744202072009,9.743,102.69,102.67,0.07292034]
[1744202072507,0.06405419,102.7,102.67,0.07292034]
[1744202072909,0.06405419,102.7,102.63,52.08]
[1744202073210,9.7468,102.65,102.63,61.828]
[1744202073396,52.08,102.7,102.63,52.08]
[1744202073902,9.7466,102.65,102.63,61.8278]
[1744202074100,0.06989613,102.68,102.63,61.8278]
[1744202074301,9.7464,102.66,102.63,61.90154335]
[1744202074610,9.7464,102.66,102.63,61.8278]
[1744202074910,9.7464,102.66,102.63,61.89164797]
[1744202075110,0.06197524,102.67,102.63,52.14384797]
[1744202075305,0.06197524,102.67,102.66,41.06526136]
[1744202075704,9.7418,102.7,102.66,41.06526136]
[1744202075911,9.3317,102.72,102.65,0.06306019]
[1744202076207,9.3317,102.72,102.65,9.7459]
[1744202076711,9.7442,102.68,102.65,9.7459]
[1744202076909,9.7442,102.68,102.67,0.07071743]
[1744202077610,0.06192867,102.69,102.67,0.07071743]
[1744202078112,0.06192867,102.69,102.68,9.7436]
[1744202079804,0.06192867,102.69,102.67,52.15071743]
[1744202080297,9.80502867,102.69,102.67,61.89491743]
[1744202080608,0.06192867,102.69,102.67,61.89491743]
[1744202081107,0.06192867,102.69,102.68,9.7436]
[1744202081812,0.06192867,102.69,102.67,52.15071743]
[1744202082915,9.80472867,102.69,102.67,61.89441743]
[1744202083218,0.06192867,102.69,102.67,52.15071743]
[1744202084017,0.06192867,102.69,102.67,0.07071743]
[1744202084618,9.80492867,102.69,102.67,9.81461743]
[1744202085317,9.7436,102.68,102.67,0.07071743]
[1744202085517,0.06192867,102.69,102.67,0.07071743]
[1744202085922,0.06192867,102.69,102.68,9.7436]
[1744202086519,4.5507,102.73,102.71,9.7404]
[1744202087017,9.7383,102.74,102.7,25.6184866]
[1744202087218,9.7383,102.74,102.72,9.739]
[1744202087517,4.7197,102.76,102.72,77.6984866]
[1744202087720,13.30955106,102.79,102.76,9.736]
[1744202087914,13.30955106,102.79,102.74,25.6184866]
[1744202088116,0.06909938,102.75,102.74,25.6184866]
[1744202088415,0.06493588,102.76,102.75,9.80839253]
[1744202089924,0.06493588,102.76,102.75,0.07149253]
[1744202090821,0.06493588,102.76,102.75,9.80849253]
[1744202091020,0.06493588,102.76,102.75,0.07149253]
[1744202091706,9.80093588,102.76,102.75,0.07149253]
[1744202092317,0.06493588,102.76,102.75,0.07149253]
[1744202093023,0.06493588,102.76,102.75,60.12849253]
[1744202093523,0.06493588,102.76,102.75,50.39149253]
[1744202094025,0.06493588,102.76,102.75,0.07149253]
[1744202094321,9.80093588,102.76,102.75,0.07149253]
[1744202095825,0.06493588,102.76,102.75,0.07149253]
[1744202096224,0.06493588,102.76,102.75,60.10849253]
[1744202096419,0.06493588,102.76,102.75,101.02519039]
[1744202097124,50.3,102.83,102.78,9.7341]
[1744202097329,9.7329,102.8,102.75,91.28819039]
[1744202097529,9.7329,102.8,102.75,91.21669786]
[1744202098326,9.7336,102.79,102.75,91.21669786]
[1744202098627,9.80462078,102.79,102.76,0.06186633]
[1744202099327,9.80462078,102.79,102.76,9.79756633]